bitfinex/quotes_BTCUSD_20250814
["timestamp","ask_amount","ask_price","bid_price","bid_amount"]
[1755147296151,0.00698,122940.0,122930.0,0.6604]
[1755147296351,0.00698,122940.0,122930.0,0.342]
[1755147296557,0.00698,122940.0,122930.0,0.46552]
[1755147296793,0.00698,122940.0,122930.0,0.342]
[1755147296969,0.00698,122940.0,122930.0,0.46552]
[1755147298989,0.00698,122940.0,122930.0,0.46767]
[1755147300235,0.00401,122940.0,122930.0,0.46767]
[1755147301187,0.00401,122940.0,122930.0,0.34415]
[1755147301461,0.00401,122940.0,122930.0,0.46767]
[1755147302497,0.00401,122940.0,122930.0,0.492024]
[1755147303013,0.00401,122940.0,122930.0,0.368504]
[1755147303225,0.00401,122940.0,122930.0,0.492024]
[1755147305048,0.00401,122940.0,122930.0,0.788224]
[1755147307112,0.00401,122940.0,122930.0,0.686904]
[1755147308921,0.00401,122940.0,122930.0,0.368504]
[1755147309395,0.00401,122940.0,122930.0,0.491984]
[1755147309873,0.002,122940.0,122930.0,0.154934]
[1755147311775,0.002,122940.0,122930.0,0.494934]
[1755147315051,0.002,122940.0,122930.0,0.892454]
[1755147317572,0.002,122940.0,122930.0,0.371454]
[1755147317986,0.002,122940.0,122930.0,0.494934]
[1755147318859,0.002,122940.0,122930.0,0.48521541]
[1755147319066,0.002,122940.0,122930.0,0.48435541]
[1755147319285,0.00406,122940.0,122930.0,0.36087541]
[1755147319513,0.55565486,122940.0,122930.0,0.34]
[1755147319691,0.00341269,122930.0,122900.0,0.00295]
[1755147319916,0.55159486,122930.0,122920.0,0.34]
[1755147320097,0.00855269,122930.0,122920.0,0.34]
[1755147320530,0.00855269,122930.0,122920.0,0.46348]
[1755147321009,0.00855269,122930.0,122920.0,0.12348]
[1755147321202,0.00855269,122930.0,122920.0,0.46348]
[1755147321378,0.00955269,122930.0,122920.0,0.34]
[1755147321606,0.00955269,122930.0,122920.0,0.46348]
[1755147321825,0.00855269,122930.0,122920.0,0.46348]
[1755147322281,0.55565486,122930.0,122920.0,0.46448]
[1755147322533,0.55565486,122930.0,122920.0,0.341]
[1755147322812,0.55465486,122930.0,122920.0,0.46448]
[1755147323056,0.63713929,122930.0,122920.0,0.46548]
[1755147324310,0.00955269,122930.0,122920.0,0.46548]
[1755147324985,0.00955269,122930.0,122920.0,0.66812]
[1755147325218,0.00955269,122930.0,122920.0,0.863]
[1755147326721,0.00955269,122930.0,122920.0,0.76168]
[1755147330622,0.00955269,122930.0,122920.0,0.46548]
[1755147331303,0.0757263,122930.0,122920.0,0.46548]
[1755147335062,0.0757263,122930.0,122920.0,0.863]
[1755147335279,0.00955269,122930.0,122920.0,0.863]
[1755147338745,0.55465486,122930.0,122920.0,0.46548]
[1755147339787,0.55465486,122930.0,122920.0,0.12548]
[1755147340219,0.55465486,122930.0,122920.0,0.002]
[1755147340432,0.55465486,122930.0,122920.0,0.12548]
[1755147340857,0.00955269,122930.0,122920.0,0.12548]
[1755147341500,0.0757263,122930.0,122920.0,0.002]
[1755147341693,0.00955269,122930.0,122900.0,0.21001531]
[1755147341910,0.00955269,122930.0,122900.0,0.31001531]
[1755147342286,0.00955269,122930.0,122900.0,0.12038718]
[1755147342900,0.00955269,122930.0,122910.0,0.12348]
[1755147343336,0.00955269,122930.0,122920.0,0.34]
[1755147343581,0.00855269,122930.0,122920.0,0.34]
[1755147343808,0.55465486,122930.0,122920.0,0.34]
[1755147344513,0.00955269,122930.0,122920.0,0.34]
[1755147344730,0.00855269,122930.0,122920.0,0.34]
[1755147344907,0.00855269,122930.0,122920.0,0.12344]
[1755147345125,0.00855269,122930.0,122920.0,0.86196]
[1755147345335,0.0746263,122930.0,122920.0,0.6372]
[1755147345567,0.0756263,122930.0,122920.0,0.76064]
[1755147345802,0.62072847,122930.0,122920.0,0.76064]
[1755147346464,0.61972847,122930.0,122920.0,0.76064]
[1755147347049,0.62172847,122930.0,122920.0,0.76164]
[1755147347377,0.0766263,122930.0,122920.0,0.66032]
[1755147347813,0.01055269,122930.0,122920.0,0.66032]
[1755147348594,0.00955269,122930.0,122920.0,0.66032]
[1755147348840,0.00441269,122930.0,122920.0,0.34387]
[1755147349029,0.00441269,122930.0,122920.0,0.46731]
[1755147350173,0.00441269,122930.0,122920.0,0.34387]
[1755147350325,0.00441269,122930.0,122920.0,0.46731]
[1755147353513,0.002,122930.0,122920.0,0.28900576]
[1755147353724,0.002,122930.0,122920.0,0.12748]
[1755147354321,0.002,122930.0,122920.0,0.12631]
[1755147354783,0.00498,122930.0,122920.0,0.12631]
[1755147354987,0.00696,122930.0,122920.0,0.22763]
[1755147355206,0.00696,122930.0,122920.0,0.52196]
[1755147355416,0.00696,122930.0,122920.0,0.39852]
[1755147355623,0.00696,122930.0,122920.0,0.52196]
[1755147355836,0.00696,122930.0,122920.0,0.86196]
[1755147356928,0.00696,122930.0,122920.0,0.65932]
[1755147357632,0.00696,122930.0,122920.0,0.341]
[1755147357847,0.00696,122930.0,122920.0,0.46444]
[1755147359799,0.00696,122930.0,122920.0,0.46631]
[1755147360471,0.00498,122930.0,122920.0,0.49492519]
[1755147360679,0.002,122930.0,122920.0,0.49492519]
[1755147364792,0.00498,122930.0,122920.0,0.49488519]
[1755147365015,0.00498,122930.0,122920.0,0.59620519]
[1755147365231,0.00498,122930.0,122920.0,0.66768519]
[1755147365456,0.00498,122930.0,122920.0,0.79108519]
[1755147367655,0.00474038,122930.0,122920.0,0.49488519]
[1755147368479,0.00669038,122930.0,122920.0,0.49488519]
[1755147369926,0.00593,122930.0,122920.0,0.36961519]
[1755147370141,0.70301582,122930.0,122920.0,0.02961519]
[1755147370348,0.80986225,122930.0,122920.0,0.02961519]
[1755147370569,0.80986225,122930.0,122920.0,0.15301519]
[1755147370779,0.81186225,122930.0,122920.0,0.1254]
[1755147370984,0.81186225,122930.0,122920.0,0.15292754]
[1755147371191,0.81186225,122930.0,122920.0,0.15192754]
[1755147371192,0.81086225,122930.0,122920.0,0.15192754]
[1755147371411,0.81086225,122930.0,122920.0,0.02852754]
[1755147371640,0.81086225,122930.0,122920.0,0.15192754]
[1755147372467,0.81086225,122930.0,122920.0,0.1244]
[1755147375068,0.81086225,122930.0,122920.0,0.4206]
[1755147377514,0.81086225,122930.0,122920.0,0.31928]
[1755147378508,0.19891237,122930.0,122920.0,0.31928]
[1755147378693,0.74401454,122930.0,122920.0,0.31928]
[1755147378930,0.74701454,122930.0,122920.0,0.31928]
[1755147379524,0.19691237,122930.0,122920.0,0.1234]
[1755147379790,0.71765254,122930.0,122920.0,0.1234]
[1755147380217,0.72465254,122930.0,122920.0,0.1244]
[1755147380447,0.72065254,122930.0,122920.0,0.1234]
[1755147380653,0.72065254,122930.0,122920.0,0.1244]
[1755147380829,0.72565254,122930.0,122920.0,0.1244]
[1755147381251,0.72565254,122930.0,122920.0,0.001]
[1755147381681,0.64316811,122930.0,122920.0,0.1244]
[1755147382128,0.09806594,122930.0,122920.0,0.1244]
[1755147382349,0.64316811,122930.0,122920.0,0.1244]
[1755147382567,0.09806594,122930.0,122920.0,0.1244]
[1755147382796,0.64316811,122930.0,122920.0,0.1244]
[1755147384376,0.67191289,122930.0,122920.0,0.1244]
[1755147385024,0.67191289,122930.0,122920.0,0.52204]
[1755147386909,0.64316811,122930.0,122890.0,0.22916191]
[1755147387122,0.63101542,122920.0,122890.0,0.00117]
[1755147387879,0.08591325,122920.0,122890.0,0.00117]
[1755147388125,0.63101542,122920.0,122900.0,0.1234]
[1755147388532,0.63301542,122920.0,122900.0,0.15130979]
[1755147389780,0.08791325,122920.0,122900.0,0.15130979]
[1755147389984,0.63301542,122920.0,122900.0,0.15130979]
[1755147390185,0.63101542,122920.0,122900.0,0.15130979]
[1755147390633,0.63501542,122920.0,122900.0,0.15230979]
[1755147390829,0.09191325,122920.0,122900.0,0.15330979]
[1755147391056,0.63701542,122920.0,122910.0,0.00187]
[1755147391618,0.63896542,122920.0,122910.0,0.00187]
[1755147392785,0.63896542,122920.0,122900.0,0.15330979]
[1755147392942,0.63696542,122920.0,122900.0,0.15230979]
[1755147393161,0.09186325,122920.0,122900.0,0.15230979]
[1755147393387,0.63996542,122920.0,122910.0,0.001]
[1755147393834,0.63696542,122920.0,122900.0,0.15230979]
[1755147393970,0.63496542,122920.0,122900.0,0.15230979]
[1755147394186,0.63996542,122920.0,122910.0,0.001]
[1755147394556,0.63796542,122920.0,122910.0,0.001]
[1755147394861,0.64096542,122920.0,122910.0,0.002]
[1755147395012,0.64096542,122920.0,122910.0,0.39964]
[1755147395209,0.09586325,122920.0,122910.0,0.40151]
[1755147395422,0.63901542,122920.0,122910.0,0.30015]
[1755147395868,0.09586325,122920.0,122910.0,0.30015]
[1755147396076,0.01041269,122920.0,122910.0,0.32215]
[1755147396463,0.01041269,122920.0,122910.0,0.12723]
[1755147401431,0.62080112,122920.0,122910.0,0.00387]
[1755147401669,0.62295112,122920.0,122910.0,0.12723]
[1755147402082,0.62295112,122920.0,122910.0,0.00387]
[1755147402282,0.62295112,122920.0,122910.0,0.12723]
[1755147403502,0.56071486,122920.0,122910.0,0.12536]
[1755147403923,0.56071486,122920.0,122910.0,0.002]
[1755147404128,0.56071486,122920.0,122910.0,0.12536]
[1755147404328,0.64343811,122920.0,122910.0,0.12536]
[1755147404594,0.71446669,122920.0,122910.0,0.12536]
[1755147405120,0.71446669,122920.0,122910.0,0.523]
[1755147406775,0.71446669,122920.0,122910.0,0.42164]
[1755147408166,0.71446669,122920.0,122910.0,0.19692]
[1755147408423,0.71446669,122920.0,122910.0,0.12536]
[1755147409785,0.70946669,122920.0,122910.0,0.12536]
[1755147413649,0.16436452,122920.0,122910.0,0.12536]
[1755147413880,0.70946669,122920.0,122910.0,0.12536]
[1755147414368,0.70946669,122920.0,122910.0,0.002]
[1755147414369,1.25456886,122920.0,122910.0,0.002]
[1755147414604,1.28853886,122920.0,122910.0,0.002]
[1755147414827,0.73383369,122920.0,122910.0,0.002]
[1755147415045,0.73383369,122920.0,122910.0,0.10336]
[1755147415262,0.73383369,122920.0,122910.0,0.29828]
[1755147415490,0.73383369,122920.0,122910.0,0.42164]
[1755147415720,0.18873152,122920.0,122910.0,0.42164]
[1755147415998,0.66280511,122920.0,122910.0,0.42164]
[1755147416202,0.66280511,122920.0,122910.0,0.19692]
[1755147416414,0.66280511,122920.0,122910.0,0.32028]
[1755147417018,0.54510217,122910.0,122860.0,0.19067637]
[1755147417242,0.08272325,122900.0,122860.0,0.29067637]
[1755147417425,0.08577325,122900.0,122860.0,0.29067637]
[1755147418084,0.08577325,122900.0,122860.0,0.10104824]
[1755147418297,0.08577325,122900.0,122870.0,0.12336]
[1755147418523,0.08818594,122900.0,122860.0,0.0252711]
[1755147418729,0.00241269,122890.0,122870.0,0.12336]
[1755147419581,0.00241269,122890.0,122860.0,0.0546371]
[1755147419801,0.00241269,122890.0,122880.0,0.34]
[1755147420055,0.00341269,122890.0,122880.0,0.34]
[1755147420444,0.00441269,122890.0,122880.0,0.34]
[1755147420653,0.00341269,122890.0,122880.0,0.34]
[1755147421863,0.00441269,122890.0,122880.0,0.34]
[1755147422260,0.00541269,122890.0,122880.0,0.343]
[1755147422471,0.00441269,122890.0,122880.0,0.343]
[1755147422676,0.00846269,122890.0,122880.0,0.46736]
[1755147423177,0.01061269,122890.0,122880.0,0.46736]
[1755147424261,0.01061269,122890.0,122880.0,0.344]
[1755147424495,0.01061269,122890.0,122880.0,0.46736]
[1755147425149,0.01061269,122890.0,122880.0,0.865]
[1755147426400,0.01061269,122890.0,122880.0,0.76364]
[1755147428427,0.01061269,122890.0,122880.0,0.66228]
[1755147430348,0.01061269,122890.0,122880.0,0.46736]
[1755147435060,0.01061269,122890.0,122880.0,0.86504]
[1755147437299,0.01061269,122890.0,122880.0,0.66232]
[1755147438938,0.00846269,122890.0,122880.0,0.66232]
[1755147439338,0.00846269,122890.0,122880.0,0.46736]
[1755147444421,0.01041269,122890.0,122880.0,0.46736]
[1755147445016,0.01041269,122890.0,122880.0,0.86504]
[1755147445221,0.55551486,122890.0,122880.0,0.30032]
[1755147445416,0.70874669,122890.0,122880.0,0.19896]
[1755147445624,0.16364452,122890.0,122880.0,0.32232]
[1755147446037,0.00835269,122890.0,122880.0,0.12736]
[1755147446258,0.00835269,122890.0,122880.0,0.004]
[1755147446407,0.00835269,122890.0,122880.0,0.343]
[1755147446644,0.00730269,122890.0,122880.0,0.46336]
[1755147447080,0.00830269,122890.0,122880.0,0.46536]
[1755147447233,0.01030269,122890.0,122880.0,0.46536]
[1755147450037,0.00835269,122890.0,122880.0,0.46536]
[1755147451468,0.07038295,122890.0,122880.0,0.46536]
[1755147451681,0.07233295,122890.0,122880.0,0.46536]
[1755147452104,0.08233295,122890.0,122880.0,0.46536]
[1755147452255,0.02030269,122890.0,122880.0,0.46536]
[1755147455014,0.02030269,122890.0,122880.0,0.76168]
[1755147456806,0.02030269,122890.0,122880.0,0.66032]
[1755147458268,0.02030269,122890.0,122880.0,0.46536]
[1755147458500,0.01835269,122890.0,122880.0,0.46536]
[1755147459738,0.01835269,122890.0,122880.0,0.46532]
[1755147461453,0.01835269,122890.0,122880.0,0.342]
[1755147461657,0.02034269,122890.0,122880.0,0.46532]
[1755147462449,0.01835269,122890.0,122880.0,0.46532]
[1755147462856,0.013,122890.0,122880.0,0.342]
[1755147463070,0.013,122890.0,122880.0,0.65494813]
[1755147463274,0.013,122890.0,122880.0,0.53162813]
[1755147463443,0.013,122890.0,122880.0,0.65494813]
[1755147463645,0.013,122890.0,122880.0,0.53162813]
[1755147463841,0.013,122890.0,122880.0,0.65494813]
[1755147464231,0.013,122890.0,122880.0,0.67931213]
[1755147464885,0.013,122890.0,122880.0,0.55599213]
[1755147465095,0.013,122890.0,122880.0,0.85231213]
[1755147465443,0.013,122890.0,122880.0,0.97563213]
[1755147465620,0.013,122890.0,122880.0,0.75095213]
[1755147465757,0.013,122890.0,122880.0,0.87427213]
[1755147467321,0.013,122890.0,122880.0,0.67931213]
[1755147468375,0.013,122890.0,122880.0,0.55599213]
[1755147468595,0.013,122890.0,122880.0,0.67931213]
[1755147468894,0.013,122890.0,122880.0,0.55599213]
[1755147469047,0.0032542,122890.0,122880.0,0.76203538]
[1755147470180,0.0032542,122890.0,122880.0,0.63871538]
[1755147470380,0.0042542,122890.0,122880.0,0.76203538]
[1755147470602,0.0042542,122890.0,122880.0,0.63871538]
[1755147470804,0.0042542,122890.0,122880.0,0.76203538]
[1755147471029,0.0042542,122890.0,122880.0,0.76003538]
[1755147471546,0.0052542,122890.0,122880.0,0.57440725]
[1755147472278,0.0052542,122890.0,122880.0,0.45108725]
[1755147472485,0.0052542,122890.0,122880.0,0.57440725]
[1755147472697,0.07527191,122890.0,122880.0,0.368364]
[1755147472868,0.07726191,122890.0,122880.0,0.491684]
[1755147473110,0.07726191,122890.0,122880.0,0.63753696]
[1755147474674,0.07726191,122890.0,122880.0,0.51421696]
[1755147474873,0.07726191,122890.0,122880.0,0.63753696]
[1755147475092,0.07726191,122890.0,122880.0,1.03517696]
[1755147476167,0.0084242,122890.0,122880.0,1.03517696]
[1755147476717,0.0104142,122890.0,122880.0,1.03517696]
[1755147476920,0.0104142,122890.0,122880.0,0.81049696]
[1755147477133,0.0796746,122890.0,122880.0,0.68477296]
[1755147477334,0.0796746,122890.0,122880.0,0.48985296]
[1755147477538,0.0796746,122890.0,122880.0,0.61317296]
[1755147477971,0.0796746,122890.0,122880.0,0.46732]
[1755147479501,0.0796746,122890.0,122880.0,0.61317296]
[1755147483469,0.0796746,122890.0,122880.0,0.48985296]
[1755147483666,0.0796746,122890.0,122880.0,0.61317296]
[1755147485092,0.0796746,122890.0,122880.0,1.01085296]
[1755147486920,0.01282689,122890.0,122880.0,1.01085296]
[1755147487123,0.01282689,122890.0,122880.0,0.90949296]
[1755147488405,0.01282689,122890.0,122880.0,0.48985296]
[1755147488654,0.01282689,122890.0,122880.0,0.61317296]
[1755147490011,0.09555014,122890.0,122880.0,0.61317296]
[1755147490417,0.16239785,122890.0,122880.0,0.48985296]
[1755147490618,0.24488228,122890.0,122880.0,0.27317296]
[1755147490825,0.16239785,122890.0,122880.0,0.27317296]
[1755147491241,0.16039785,122890.0,122880.0,0.26917296]
[1755147491443,0.20408549,122890.0,122880.0,0.27017296]
[1755147491653,0.20508549,122890.0,122880.0,0.14785296]
[1755147491901,0.20508549,122890.0,122880.0,0.27017296]
[1755147492331,0.20708549,122890.0,122880.0,0.27117296]
[1755147493014,0.20708549,122890.0,122880.0,0.12532]
[1755147494997,0.20708549,122890.0,122880.0,0.523]
[1755147495743,0.20708549,122890.0,122880.0,0.42164]
[1755147496874,0.20708549,122890.0,122880.0,0.19696]
[1755147497075,0.20708549,122890.0,122880.0,0.32028]
[1755147497844,0.20708549,122890.0,122880.0,0.002]
[1755147498047,0.20708549,122890.0,122880.0,0.12532]
[1755147500378,0.20708549,122890.0,122880.0,0.002]
[1755147500560,0.20708549,122890.0,122880.0,0.12532]
[1755147502517,0.20708549,122890.0,122880.0,0.002]
[1755147502720,0.20708549,122890.0,122880.0,0.12532]
[1755147503353,0.7523118,122890.0,122880.0,0.12532]
[1755147504259,0.20708549,122890.0,122880.0,0.12532]
[1755147504387,0.7523118,122890.0,122880.0,0.12532]
[1755147504868,0.20708549,122890.0,122880.0,0.12532]
[1755147505025,0.20708549,122890.0,122880.0,0.523]
[1755147505933,0.20708549,122890.0,122880.0,0.002]
[1755147506127,0.20708549,122890.0,122880.0,0.12532]
[1755147506781,0.20708549,122890.0,122880.0,0.002]
[1755147506978,0.20708549,122890.0,122880.0,0.12532]
[1755147507164,0.7523118,122890.0,122880.0,0.12532]
[1755147507870,0.70962416,122890.0,122880.0,0.12532]
[1755147513733,0.09755014,122890.0,122880.0,0.12532]
[1755147513906,0.64277645,122890.0,122880.0,0.12532]
[1755147514959,0.64277645,122890.0,122880.0,0.22668]
[1755147515159,0.64277645,122890.0,122880.0,0.523]
[1755147515365,0.09755014,122890.0,122880.0,0.523]
[1755147516242,0.09755014,122890.0,122880.0,0.32028]
[1755147516425,0.09556014,122890.0,122880.0,0.32028]
[1755147516759,0.09764014,122890.0,122880.0,0.32028]
[1755147518426,0.09764014,122890.0,122880.0,0.27117296]
[1755147519446,0.09556014,122890.0,122880.0,0.27117296]
[1755147519932,0.09764014,122890.0,122880.0,0.27117296]
[1755147520813,0.09239014,122890.0,122880.0,0.27117296]
[1755147521545,0.00966689,122890.0,122880.0,0.27117296]
[1755147522275,0.00966689,122890.0,122880.0,0.14785296]
[1755147522504,0.00966689,122890.0,122880.0,0.27117296]
[1755147523338,0.00966689,122890.0,122880.0,0.14785296]
[1755147523583,0.0072542,122890.0,122880.0,0.14785296]
[1755147523800,0.0072542,122890.0,122880.0,0.46528]
[1755147523965,0.0072542,122890.0,122880.0,0.489645]
[1755147525101,0.0072542,122890.0,122880.0,0.887325]
[1755147525305,0.0072542,122890.0,122880.0,0.764045]
[1755147525617,0.0072542,122890.0,122880.0,0.887325]
[1755147527517,0.0072542,122890.0,122880.0,0.785965]
[1755147528022,0.0072542,122890.0,122880.0,0.147645]
[1755147532460,0.0072542,122890.0,122880.0,0.024365]
[1755147532629,0.0072542,122890.0,122880.0,0.147645]
[1755147533920,0.0072542,122890.0,122880.0,0.024365]
[1755147534132,0.0072542,122890.0,122880.0,0.147645]
[1755147534276,0.0052542,122890.0,122880.0,0.147645]
[1755147534493,0.0042542,122890.0,122880.0,0.025365]
[1755147534756,0.0042542,122890.0,122880.0,0.148645]
[1755147535172,0.0042542,122890.0,122880.0,0.546325]
[1755147536226,0.0052542,122890.0,122880.0,0.548325]
[1755147538712,0.0052542,122890.0,122880.0,0.150645]
[1755147544312,0.0052542,122890.0,122880.0,0.027365]
[1755147544464,0.0052542,122890.0,122880.0,0.150605]
[1755147544672,0.0052542,122890.0,122880.0,0.027365]
[1755147544875,0.0083142,122890.0,122880.0,0.150605]
[1755147545119,0.0083142,122890.0,122880.0,0.548245]
[1755147545324,0.0052542,122890.0,122880.0,0.323645]
[1755147545529,0.0052542,122890.0,122880.0,0.446885]
[1755147547348,0.0084542,122890.0,122880.0,0.345525]
[1755147547644,0.0084542,122890.0,122880.0,0.150605]
[1755147548207,0.0084542,122890.0,122870.0,0.06218967]
[1755147548407,0.0052542,122890.0,122870.0,0.14491292]
[1755147548662,0.0052542,122890.0,122880.0,0.024363]
[1755147549228,0.0042542,122890.0,122880.0,0.024363]
[1755147549446,0.0042542,122890.0,122880.0,0.147603]
[1755147549637,0.0052542,122890.0,122880.0,0.147603]
[1755147550046,0.0042542,122890.0,122880.0,0.487603]
[1755147550250,0.0032542,122890.0,122880.0,0.487603]
[1755147550455,0.0042542,122890.0,122880.0,0.489603]
[1755147550666,0.0052542,122890.0,122880.0,0.489603]
[1755147551076,0.0042542,122890.0,122880.0,0.489603]
[1755147551271,0.0084542,122890.0,122880.0,0.490603]
[1755147551780,0.0104642,122890.0,122880.0,0.490603]
[1755147552124,0.0084542,122890.0,122880.0,0.490603]
[1755147552748,0.0052542,122890.0,122880.0,0.490603]
[1755147552952,0.70767416,122890.0,122880.0,0.003]
[1755147553163,0.00241269,122870.0,122860.0,0.0252711]
[1755147553376,0.00442269,122870.0,122860.0,0.0252711]
[1755147553582,0.00442269,122870.0,122860.0,0.4885111]
[1755147553787,0.00762269,122870.0,122860.0,0.1485111]
[1755147554970,0.00962269,122870.0,122860.0,0.2508711]
[1755147555151,0.57708925,122870.0,122860.0,0.6625511]
[1755147555324,0.09234594,122870.0,122860.0,0.7857911]
[1755147555523,0.09234594,122870.0,122860.0,0.5611911]
[1755147555723,0.09234594,122870.0,122860.0,0.6844311]
[1755147556473,0.09434594,122870.0,122860.0,0.6854311]
[1755147556875,0.09434594,122870.0,122860.0,0.3672711]
[1755147557106,0.09434594,122870.0,122860.0,0.4905111]
[1755147557606,0.11071056,122870.0,122860.0,0.4905111]
[1755147557806,0.09434594,122870.0,122860.0,0.4905111]
[1755147558154,0.09434594,122870.0,122860.0,0.30448435]
[1755147558943,1.01698696,122870.0,122860.0,0.001]
[1755147559331,1.04136496,122870.0,122860.0,0.12424]
[1755147559554,0.75279939,122870.0,122860.0,0.001]
[1755147559759,0.72442139,122870.0,122860.0,0.12324]
[1755147559962,0.72442139,122870.0,122850.0,0.04]
[1755147560172,0.08592325,122860.0,122850.0,0.04]
[1755147560312,0.08693325,122860.0,122850.0,0.16324]
[1755147560989,0.08593325,122860.0,122850.0,0.16324]
[1755147561478,0.02678669,122880.0,122850.0,0.05724852]
[1755147561647,0.024374,122880.0,122850.0,0.12488325]
[1755147561886,0.024374,122880.0,122860.0,0.56109177]
[1755147562094,0.024374,122880.0,122870.0,0.00216]
[1755147562296,0.00566689,122890.0,122880.0,0.34]
[1755147562297,0.0032542,122890.0,122880.0,0.34]
[1755147562445,0.00566689,122890.0,122880.0,0.46544]
[1755147562649,0.0032542,122890.0,122880.0,0.46844]
[1755147562846,0.00566689,122890.0,122880.0,0.46844]
[1755147563188,0.01087689,122890.0,122880.0,0.46544]
[1755147563480,0.01087689,122890.0,122880.0,0.12544]
[1755147563976,0.01087689,122890.0,122880.0,0.00216]
[1755147564220,0.01087689,122890.0,122880.0,0.12544]
[1755147564418,0.01387689,122890.0,122880.0,0.12544]
[1755147564707,0.01987689,122890.0,122880.0,0.12644]
[1755147564908,0.01987689,122890.0,122880.0,0.00316]
[1755147565113,0.01987689,122890.0,122880.0,0.42272]
[1755147565445,0.01987689,122890.0,122880.0,0.1264]
[1755147566267,0.01987689,122890.0,122880.0,0.12424]
[1755147567763,0.01987689,122890.0,122880.0,0.1264]
[1755147567920,0.01667689,122890.0,122880.0,0.1264]
[1755147569594,0.01667689,122890.0,122880.0,0.00316]
[1755147569791,0.01667689,122890.0,122880.0,0.150765]
[1755147572789,0.01466689,122890.0,122880.0,0.027525]
[1755147572926,0.01466689,122890.0,122880.0,0.150765]
[1755147573128,0.01466689,122890.0,122880.0,0.153765]
[1755147573326,0.0122542,122890.0,122880.0,0.153765]
[1755147574280,0.0122542,122890.0,122880.0,0.150765]
[1755147575073,0.0122542,122890.0,122880.0,0.548445]
[1755147576088,0.19623454,122890.0,122880.0,0.126725]
[1755147576258,0.68097785,122890.0,122880.0,0.42056]
[1755147576433,0.19623454,122890.0,122880.0,0.3192]
[1755147577245,0.68097785,122890.0,122880.0,0.3192]
[1755147577444,0.68097785,122890.0,122880.0,0.001]
[1755147577606,0.68097785,122890.0,122880.0,0.12424]
[1755147578212,0.68097785,122890.0,122880.0,0.001]
[1755147578413,0.68097785,122890.0,122880.0,0.12424]
[1755147579455,0.68097785,122890.0,122880.0,0.001]
[1755147579659,0.68097785,122890.0,122880.0,0.12424]
[1755147581097,0.68097785,122890.0,122850.0,0.064371]
[1755147581098,0.00241269,122860.0,122850.0,0.064371]
[1755147581302,0.64181696,122860.0,122850.0,0.04]
[1755147581517,0.22125535,122860.0,122850.0,0.16376]
[1755147581728,0.64181696,122860.0,122850.0,0.16376]
[1755147581946,0.66619496,122860.0,122850.0,0.04]
[1755147582154,0.66619496,122860.0,122850.0,0.16376]
[1755147582369,0.66519496,122860.0,122850.0,0.16376]
[1755147582579,0.66919496,122860.0,122850.0,0.16376]
[1755147582778,0.73611446,122860.0,122850.0,0.16376]
[1755147583003,0.73611446,122860.0,122850.0,0.04]
[1755147583215,0.73611446,122860.0,122850.0,0.16376]
[1755147584032,0.74211446,122860.0,122850.0,0.04]
[1755147584234,0.74211446,122860.0,122850.0,0.16376]
[1755147585000,0.19052344,122860.0,122850.0,0.56156]
[1755147585176,0.60834725,122860.0,122850.0,0.56156]
[1755147585630,0.60834725,122860.0,122850.0,0.2428]
[1755147585944,0.64089725,122860.0,122850.0,0.235]
[1755147586278,0.64089725,122860.0,122850.0,0.16372]
[1755147586843,0.64089725,122860.0,122850.0,0.04]
[1755147587035,0.71167175,122860.0,122850.0,0.16376]
[1755147587807,0.71167175,122860.0,122850.0,0.04]
[1755147588008,0.71167175,122860.0,122850.0,0.16372]
[1755147588360,0.71167175,122860.0,122850.0,0.04]
[1755147588560,0.71167175,122860.0,122850.0,0.16372]
[1755147589006,0.71167175,122860.0,122850.0,0.04]
[1755147589168,0.71167175,122860.0,122800.0,0.364381]
[1755147589371,0.48474331,122840.0,122800.0,0.1]
[1755147589568,0.08272325,122830.0,122800.0,0.1]
[1755147589768,0.08576325,122830.0,122820.0,0.00127]
[1755147590079,0.00241269,122830.0,122820.0,0.00127]
[1755147590547,0.00241269,122830.0,122820.0,0.12499]
[1755147590707,0.00241269,122830.0,122820.0,0.00127]
[1755147590937,0.00241269,122830.0,122820.0,0.12495]
[1755147591137,0.00241269,122820.0,122810.0,0.03317443]
[1755147591318,0.00241269,122820.0,122810.0,0.49685443]
[1755147591538,0.00241269,122820.0,122810.0,0.3741044]
[1755147591879,0.00241269,122820.0,122810.0,0.4977844]
[1755147592953,0.00341269,122820.0,122810.0,0.3741044]
[1755147593126,0.00341269,122820.0,122810.0,0.4977844]
[1755147593865,0.00541269,122820.0,122810.0,0.4977844]
[1755147595077,0.00541269,122820.0,122810.0,0.8956244]
[1755147595952,0.00541269,122820.0,122810.0,0.7950144]
[1755147596327,0.00541269,122820.0,122810.0,0.5699344]
[1755147596526,0.00541269,122820.0,122810.0,0.6935744]
[1755147597026,0.00541269,122820.0,122810.0,0.6927844]
[1755147597258,0.00541269,122820.0,122810.0,0.6928244]
[1755147597415,0.00541269,122820.0,122810.0,0.7172024]
[1755147597816,0.00541269,122820.0,122810.0,0.3984824]
[1755147598003,0.00541269,122820.0,122810.0,0.5221224]
[1755147598384,0.00541269,122820.0,122810.0,0.3984824]
[1755147598601,0.00845269,122820.0,122810.0,0.5221224]
[1755147600672,0.00541269,122820.0,122810.0,0.5221224]
[1755147601079,0.00541269,122820.0,122810.0,0.3984824]
[1755147601358,0.00541269,122820.0,122810.0,0.5220824]
[1755147601818,0.00541269,122820.0,122810.0,0.5228724]
[1755147601819,0.003,122820.0,122810.0,0.5228724]
[1755147602033,0.003,122820.0,122810.0,0.3992724]
[1755147602232,0.003,122820.0,122810.0,0.48199565]
[1755147602458,0.003,122820.0,122810.0,0.60559565]
[1755147602686,0.003,122820.0,122810.0,0.48199565]
[1755147602859,0.003,122820.0,122810.0,0.60571565]
[1755147603060,0.003,122820.0,122810.0,0.48199565]
[1755147603297,0.003,122820.0,122810.0,0.60571565]
[1755147603716,0.003,122820.0,122810.0,0.60567565]
[1755147605045,0.003,122820.0,122810.0,1.00351565]
[1755147605252,0.003,122820.0,122810.0,0.90211565]
[1755147606613,0.003,122820.0,122810.0,0.67703565]
[1755147606833,0.003,122820.0,122810.0,0.60563565]
[1755147609458,0.003,122820.0,122810.0,0.60484565]
[1755147610453,0.003,122820.0,122810.0,0.60563565]